[Event "December 12 Late 2023"]
[Site "https://www.chess.com"]
[Date "2023.12.12"]
[Round "9"]
[White "Drygalov, Andrey"]
[Black "Kamsky, Gata"]
[Result "1-0"]
[Board "9"]
[TimeControl "180+1"]
[WhiteFideId "24171735"]
[BlackFideId "2000024"]
[WhiteElo "3000"]
[BlackElo "2865"]
[WhiteTeam "RUS"]
[BlackTeam "USA"]
[WhiteClock "0:00:52"]
[BlackClock "0:00:00"]

1. e4 {[%clk 0:03:00]}  c6 {[%clk 0:02:56]} 2. Nf3 {[%clk 0:03:00]}  d5 {[%clk 0:02:52]} 3. d3 {[%clk 0:03:01]}  Bg4 {[%clk 0:02:50]} 4. h3 {[%clk 0:03:01]}  Bxf3 {[%clk 0:02:49]} 5. Qxf3 {[%clk 0:03:01]}  e6 {[%clk 0:02:49]} 6. g3 {[%clk 0:03:00]}  Nf6 {[%clk 0:02:39]} 7. Bg2 {[%clk 0:03:00]}  Bc5 {[%clk 0:02:33]} 8. O-O {[%clk 0:03:00]}  Nbd7 {[%clk 0:02:33]} 9. Qe2 {[%clk 0:02:58]}  h5 {[%clk 0:02:31]} 10. Nd2 {[%clk 0:02:56]}  a5 {[%clk 0:02:29]} 11. e5 {[%clk 0:02:57]}  Ng8 {[%clk 0:02:28]} 12. c3 {[%clk 0:02:57]}  Ne7 {[%clk 0:02:24]} 13. d4 {[%clk 0:02:53]}  Ba7 {[%clk 0:02:24]} 14. Nf3 {[%clk 0:02:53]}  Nf5 {[%clk 0:02:10]} 15. h4 {[%clk 0:02:53]}  g6 {[%clk 0:02:09]} 16. Bh3 {[%clk 0:02:50]}  c5 {[%clk 0:01:26]} 17. Bxf5 {[%clk 0:02:47]}  gxf5 {[%clk 0:01:25]} 18. Bg5 {[%clk 0:02:42]}  Qb6 {[%clk 0:01:22]} 19. Rfe1 {[%clk 0:02:19]}  Qa6 {[%clk 0:01:20]} 20. Qd2 {[%clk 0:02:16]}  Bb6 {[%clk 0:01:00]} 21. a4 {[%clk 0:01:46]}  Bd8 {[%clk 0:00:46]} 22. b3 {[%clk 0:01:44]}  Qb6 {[%clk 0:00:44]} 23. Rab1 {[%clk 0:01:40]}  Bxg5 {[%clk 0:00:43]} 24. Nxg5 {[%clk 0:01:40]}  Rc8 {[%clk 0:00:38]} 25. c4 {[%clk 0:01:38]}  Qc6 {[%clk 0:00:28]} 26. dxc5 {[%clk 0:01:16]}  Nxc5 {[%clk 0:00:27]} 27. cxd5 {[%clk 0:01:16]}  Qxd5 {[%clk 0:00:26]} 28. Qxa5 {[%clk 0:01:13]}  Ne4 {[%clk 0:00:19]} 29. Qxd5 {[%clk 0:01:07]}  exd5 {[%clk 0:00:19]} 30. Nf3 {[%clk 0:01:08]}  Rg8 {[%clk 0:00:14]} 31. Rbd1 {[%clk 0:01:01]}  Nc3 {[%clk 0:00:12]} 32. Rd3 {[%clk 0:00:59]}  f4 {[%clk 0:00:11]} 33. Ng5 {[%clk 0:01:00]}  fxg3 {[%clk 0:00:10]} 34. fxg3 {[%clk 0:00:59]}  Rg7 {[%clk 0:00:07]} 35. Kg2 {[%clk 0:00:55]}  Ke7 {[%clk 0:00:05]} 36. Rc1 {[%clk 0:00:53]}  d4 {[%clk 0:00:05]} 37. Rxd4 {[%clk 0:00:53]}  Rgg8 {[%clk 0:00:04]} 38. Rf1 {[%clk 0:00:51]}  Rg7 {[%clk 0:00:00]} 39. Rdf4 {[%clk 0:00:52]} 1-0

[Event "December 12 Late 2023"]
[Site "https://www.chess.com"]
[Date "2023.12.12"]
[Round "9"]
[White "Zhigalko, Sergei"]
[Black "Yuan, Qingyu"]
[Result "1-0"]
[Board "12"]
[TimeControl "180+1"]
[WhiteFideId "13502956"]
[BlackFideId "8609772"]
[WhiteElo "2958"]
[BlackElo "2799"]
[WhiteTeam "BLR"]
[BlackTeam "CHN"]
[WhiteClock "0:01:50"]
[BlackClock "0:01:13"]

1. e4 {[%clk 0:03:00]}  e5 {[%clk 0:03:00]} 2. Nf3 {[%clk 0:03:01]}  Nc6 {[%clk 0:03:00]} 3. Bc4 {[%clk 0:02:59]}  Bc5 {[%clk 0:03:01]} 4. b4 {[%clk 0:02:58]}  Bxb4 {[%clk 0:03:01]} 5. c3 {[%clk 0:02:58]}  Be7 {[%clk 0:03:01]} 6. d4 {[%clk 0:02:59]}  Na5 {[%clk 0:03:01]} 7. Bd3 {[%clk 0:02:59]}  d6 {[%clk 0:03:00]} 8. dxe5 {[%clk 0:03:00]}  dxe5 {[%clk 0:03:00]} 9. Nxe5 {[%clk 0:03:01]}  Nf6 {[%clk 0:03:00]} 10. O-O {[%clk 0:03:01]}  O-O {[%clk 0:03:00]} 11. Qc2 {[%clk 0:03:02]}  c5 {[%clk 0:02:59]} 12. Nd2 {[%clk 0:03:02]}  Qc7 {[%clk 0:02:56]} 13. f4 {[%clk 0:02:52]}  Bd6 {[%clk 0:02:39]} 14. Ndc4 {[%clk 0:02:48]}  h6 {[%clk 0:01:53]} 15. Nxa5 {[%clk 0:02:44]}  Qxa5 {[%clk 0:01:34]} 16. Nc4 {[%clk 0:02:44]}  Qc7 {[%clk 0:01:35]} 17. Nxd6 {[%clk 0:02:32]}  Qxd6 {[%clk 0:01:35]} 18. e5 {[%clk 0:02:33]}  Qb6 {[%clk 0:01:35]} 19. Rb1 {[%clk 0:02:27]}  Qc6 {[%clk 0:01:35]} 20. exf6 {[%clk 0:02:25]}  Qxf6 {[%clk 0:01:36]} 21. Bh7+ {[%clk 0:02:20]}  Kh8 {[%clk 0:01:36]} 22. Be4 {[%clk 0:02:21]}  Rb8 {[%clk 0:01:35]} 23. c4 {[%clk 0:02:16]}  Qd4+ {[%clk 0:01:27]} 24. Kh1 {[%clk 0:02:16]}  Re8 {[%clk 0:01:28]} 25. Bd5 {[%clk 0:02:12]}  Bg4 {[%clk 0:01:25]} 26. Bb2 {[%clk 0:02:09]}  Qe3 {[%clk 0:01:25]} 27. Be5 {[%clk 0:02:04]}  Rbd8 {[%clk 0:01:20]} 28. Rxb7 {[%clk 0:01:55]}  Be2 {[%clk 0:01:20]} 29. Re1 {[%clk 0:01:52]}  Qf2 {[%clk 0:01:13]} 30. Qxe2 {[%clk 0:01:50]} 1-0

[Event "December 12 Late 2023"]
[Site "https://www.chess.com"]
[Date "2023.12.12"]
[Round "9"]
[White "Bok, Benjamin"]
[Black "Timmermans, Mark"]
[Result "1-0"]
[Board "13"]
[TimeControl "180+1"]
[WhiteFideId "1017063"]
[BlackFideId "1026399"]
[WhiteElo "2942"]
[BlackElo "2744"]
[WhiteTeam "NED"]
[BlackTeam "NED"]
[WhiteClock "0:00:10"]
[BlackClock "0:01:09"]

1. c4 {[%clk 0:03:00]}  Nf6 {[%clk 0:02:59]} 2. Nf3 {[%clk 0:03:00]}  e6 {[%clk 0:03:00]} 3. g3 {[%clk 0:03:01]}  d5 {[%clk 0:03:00]} 4. Bg2 {[%clk 0:03:01]}  Be7 {[%clk 0:03:01]} 5. O-O {[%clk 0:03:01]}  O-O {[%clk 0:03:01]} 6. b3 {[%clk 0:03:01]}  c5 {[%clk 0:03:01]} 7. cxd5 {[%clk 0:03:01]}  Nxd5 {[%clk 0:03:01]} 8. Bb2 {[%clk 0:02:59]}  b6 {[%clk 0:03:02]} 9. d4 {[%clk 0:02:55]}  Bb7 {[%clk 0:03:00]} 10. dxc5 {[%clk 0:02:54]}  Bxc5 {[%clk 0:03:01]} 11. Nbd2 {[%clk 0:02:51]}  Nd7 {[%clk 0:02:54]} 12. a3 {[%clk 0:02:49]}  Be7 {[%clk 0:02:40]} 13. Nd4 {[%clk 0:02:42]}  Rc8 {[%clk 0:02:36]} 14. Nc4 {[%clk 0:02:38]}  a6 {[%clk 0:02:31]} 15. e4 {[%clk 0:02:32]}  N5f6 {[%clk 0:02:31]} 16. e5 {[%clk 0:02:29]}  Nd5 {[%clk 0:02:31]} 17. Qe2 {[%clk 0:02:17]}  b5 {[%clk 0:02:26]} 18. Nd6 {[%clk 0:02:17]}  Nc3 {[%clk 0:02:22]} 19. Bxc3 {[%clk 0:02:09]}  Bxg2 {[%clk 0:02:22]} 20. Nxc8 {[%clk 0:02:05]}  Qxc8 {[%clk 0:02:17]} 21. Kxg2 {[%clk 0:01:59]}  Qxc3 {[%clk 0:02:17]} 22. Rfd1 {[%clk 0:01:52]}  Nb6 {[%clk 0:02:08]} 23. Rac1 {[%clk 0:00:39]}  Qa5 {[%clk 0:02:09]} 24. Nc6 {[%clk 0:00:39]}  Qxa3 {[%clk 0:02:09]} 25. Ra1 {[%clk 0:00:38]}  Qc5 {[%clk 0:02:09]} 26. Rdc1 {[%clk 0:00:34]}  Qd5+ {[%clk 0:02:09]} 27. Qf3 {[%clk 0:00:34]}  Bg5 {[%clk 0:02:00]} 28. Rd1 {[%clk 0:00:23]}  Qxf3+ {[%clk 0:01:47]} 29. Kxf3 {[%clk 0:00:23]}  Rc8 {[%clk 0:01:47]} 30. Rd6 {[%clk 0:00:11]}  Nd5 {[%clk 0:01:14]} 31. Rxa6 {[%clk 0:00:10]}  h5 {[%clk 0:01:13]} 32. h4 {[%clk 0:00:10]}  Bh6 {[%clk 0:01:09]} 33. Rxd5 {[%clk 0:00:10]} 1-0

[Event "December 12 Late 2023"]
[Site "https://www.chess.com"]
[Date "2023.12.12"]
[Round "9"]
[White "Cordova, Emilio"]
[Black "Miranda, Rafael"]
[Result "1/2-1/2"]
[Board "15"]
[TimeControl "180+1"]
[WhiteFideId "3801497"]
[BlackFideId "130990"]
[WhiteElo "2933"]
[BlackElo "2655"]
[WhiteTeam "PER"]
[BlackTeam "ARG"]
[WhiteClock "0:00:14"]
[BlackClock "0:00:17"]

1. d4 {[%clk 0:03:00]}  Nf6 {[%clk 0:02:59]} 2. Bg5 {[%clk 0:02:59]}  d5 {[%clk 0:02:58]} 3. e3 {[%clk 0:02:59]}  c5 {[%clk 0:02:57]} 4. dxc5 {[%clk 0:02:59]}  Qa5+ {[%clk 0:02:51]} 5. c3 {[%clk 0:02:51]}  Qxc5 {[%clk 0:02:50]} 6. Nd2 {[%clk 0:02:49]}  Nbd7 {[%clk 0:02:46]} 7. Bd3 {[%clk 0:02:48]}  g6 {[%clk 0:02:46]} 8. Ngf3 {[%clk 0:02:43]}  Bg7 {[%clk 0:02:44]} 9. Nb3 {[%clk 0:02:33]}  Qb6 {[%clk 0:02:42]} 10. a4 {[%clk 0:02:29]}  O-O {[%clk 0:02:41]} 11. Bf4 {[%clk 0:02:28]}  Nh5 {[%clk 0:02:37]} 12. Bg3 {[%clk 0:02:26]}  e5 {[%clk 0:02:30]} 13. Be2 {[%clk 0:02:25]}  Nxg3 {[%clk 0:02:27]} 14. hxg3 {[%clk 0:02:25]}  Nc5 {[%clk 0:02:24]} 15. Nxc5 {[%clk 0:02:23]}  Qxc5 {[%clk 0:02:25]} 16. a5 {[%clk 0:02:20]}  h6 {[%clk 0:02:18]} 17. Rh4 {[%clk 0:02:19]}  Be6 {[%clk 0:02:11]} 18. Rb4 {[%clk 0:02:17]}  Rab8 {[%clk 0:02:08]} 19. Kf1 {[%clk 0:02:12]}  Rfd8 {[%clk 0:02:07]} 20. Qa4 {[%clk 0:02:07]}  a6 {[%clk 0:01:58]} 21. Rb6 {[%clk 0:02:05]}  d4 {[%clk 0:01:53]} 22. exd4 {[%clk 0:01:34]}  exd4 {[%clk 0:01:53]} 23. cxd4 {[%clk 0:01:34]}  Bxd4 {[%clk 0:01:48]} 24. Nxd4 {[%clk 0:01:34]}  Rxd4 {[%clk 0:01:45]} 25. Qa3 {[%clk 0:01:34]}  Qe5 {[%clk 0:01:38]} 26. Bf3 {[%clk 0:01:27]}  Bc4+ {[%clk 0:01:33]} 27. Kg1 {[%clk 0:01:27]}  Bd5 {[%clk 0:01:31]} 28. Qc5 {[%clk 0:01:21]}  Re8 {[%clk 0:01:14]} 29. Rd6 {[%clk 0:01:12]}  Bxf3 {[%clk 0:01:01]} 30. Qxe5 {[%clk 0:01:11]}  Rxe5 {[%clk 0:01:02]} 31. Rxd4 {[%clk 0:01:11]}  Bc6 {[%clk 0:01:03]} 32. b4 {[%clk 0:01:10]}  h5 {[%clk 0:01:03]} 33. f3 {[%clk 0:01:09]}  Rg5 {[%clk 0:01:02]} 34. Kf2 {[%clk 0:01:09]}  Rb5 {[%clk 0:00:58]} 35. Rc1 {[%clk 0:01:09]}  Re5 {[%clk 0:00:56]} 36. Re1 {[%clk 0:01:06]}  Rb5 {[%clk 0:00:56]} 37. f4 {[%clk 0:01:06]}  Rf5 {[%clk 0:00:51]} 38. Re5 {[%clk 0:01:05]}  Rf6 {[%clk 0:00:51]} 39. Rd2 {[%clk 0:00:59]}  Kf8 {[%clk 0:00:50]} 40. Ke3 {[%clk 0:00:59]}  Kg8 {[%clk 0:00:47]} 41. Kd4 {[%clk 0:00:58]}  h4 {[%clk 0:00:47]} 42. gxh4 {[%clk 0:00:52]}  Rxf4+ {[%clk 0:00:47]} 43. Kc5 {[%clk 0:00:52]}  Rxh4 {[%clk 0:00:48]} 44. g3 {[%clk 0:00:27]}  Rg4 {[%clk 0:00:46]} 45. Rd3 {[%clk 0:00:27]}  Kf8 {[%clk 0:00:40]} 46. Rb3 {[%clk 0:00:27]}  f6 {[%clk 0:00:27]} 47. Ree3 {[%clk 0:00:20]}  Rg5+ {[%clk 0:00:26]} 48. Kb6 {[%clk 0:00:20]}  Rb5+ {[%clk 0:00:25]} 49. Kc7 {[%clk 0:00:20]}  Kf7 {[%clk 0:00:22]} 50. Red3 {[%clk 0:00:18]}  Re5 {[%clk 0:00:21]} 51. Rd4 {[%clk 0:00:17]}  g5 {[%clk 0:00:21]} 52. Rc3 {[%clk 0:00:17]}  Re7+ {[%clk 0:00:19]} 53. Kb6 {[%clk 0:00:17]}  Re6 {[%clk 0:00:18]} 54. Ka7 {[%clk 0:00:16]}  f5 {[%clk 0:00:17]} 55. Rc5 {[%clk 0:00:15]}  Kf6 {[%clk 0:00:17]} 56. Rd8 {[%clk 0:00:15]}  Be4 {[%clk 0:00:14]} 57. Rf8+ {[%clk 0:00:14]}  Kg6 {[%clk 0:00:14]} 58. Rc7 {[%clk 0:00:13]}  Re5 {[%clk 0:00:12]} 59. Rh8 {[%clk 0:00:11]}  Rb5 {[%clk 0:00:12]} 60. Rch7 {[%clk 0:00:09]}  Rxb4 {[%clk 0:00:12]} 61. Rh6+ {[%clk 0:00:10]}  Kg7 {[%clk 0:00:13]} 62. R8h7+ {[%clk 0:00:10]}  Kg8 {[%clk 0:00:13]} 63. Rc7 {[%clk 0:00:11]}  Rd4 {[%clk 0:00:11]} 64. Rg6+ {[%clk 0:00:11]}  Kf8 {[%clk 0:00:11]} 65. Rxg5 {[%clk 0:00:11]}  Rd8 {[%clk 0:00:11]} 66. Rh5 {[%clk 0:00:12]}  Kg8 {[%clk 0:00:11]} 67. Rg5+ {[%clk 0:00:12]}  Kf8 {[%clk 0:00:11]} 68. Rh5 {[%clk 0:00:13]}  Kg8 {[%clk 0:00:12]} 69. Rh6 {[%clk 0:00:14]}  Re8 {[%clk 0:00:11]} 70. Rg6+ {[%clk 0:00:14]}  Kf8 {[%clk 0:00:12]} 71. Rgg7 {[%clk 0:00:14]}  Rd8 {[%clk 0:00:12]} 72. Rcf7+ {[%clk 0:00:14]}  Ke8 {[%clk 0:00:12]} 73. Rg8+ {[%clk 0:00:15]}  Kxf7 {[%clk 0:00:12]} 74. Rxd8 {[%clk 0:00:16]}  Ke7 {[%clk 0:00:13]} 75. Rb8 {[%clk 0:00:16]}  Kf6 {[%clk 0:00:13]} 76. Rg8 {[%clk 0:00:15]}  Ke5 {[%clk 0:00:13]} 77. Kb6 {[%clk 0:00:16]}  Kd4 {[%clk 0:00:13]} 78. Rb8 {[%clk 0:00:15]}  Ke3 {[%clk 0:00:14]} 79. Rxb7 {[%clk 0:00:15]}  Bxb7 {[%clk 0:00:15]} 80. Kxb7 {[%clk 0:00:16]}  Kf3 {[%clk 0:00:15]} 81. Kxa6 {[%clk 0:00:17]}  Kxg3 {[%clk 0:00:16]} 82. Kb6 {[%clk 0:00:17]}  f4 {[%clk 0:00:17]} 83. a6 {[%clk 0:00:18]}  f3 {[%clk 0:00:18]} 84. a7 {[%clk 0:00:19]}  f2 {[%clk 0:00:18]} 85. a8=Q {[%clk 0:00:14]}  f1=Q {[%clk 0:00:17]} 1/2-1/2

[Event "December 12 Late 2023"]
[Site "https://www.chess.com"]
[Date "2023.12.12"]
[Round "9"]
[White "Pranav, V"]
[Black "Janaszak, Dawid"]
[Result "1-0"]
[Board "17"]
[TimeControl "180+1"]
[WhiteFideId "25060783"]
[BlackFideId "1119206"]
[WhiteElo "3038"]
[BlackElo "2616"]
[WhiteTeam "IND"]
[BlackTeam "POL"]
[WhiteClock "0:01:39"]
[BlackClock "0:00:28"]

1. e4 {[%clk 0:03:00]}  c5 {[%clk 0:03:00]} 2. Nf3 {[%clk 0:02:59]}  Nc6 {[%clk 0:03:00]} 3. Bb5 {[%clk 0:02:55]}  e5 {[%clk 0:03:00]} 4. O-O {[%clk 0:02:54]}  Nge7 {[%clk 0:03:00]} 5. c3 {[%clk 0:02:53]}  g6 {[%clk 0:03:00]} 6. d4 {[%clk 0:02:50]}  cxd4 {[%clk 0:03:01]} 7. cxd4 {[%clk 0:02:51]}  exd4 {[%clk 0:03:02]} 8. Nxd4 {[%clk 0:02:51]}  Bg7 {[%clk 0:03:02]} 9. Nb3 {[%clk 0:02:50]}  d5 {[%clk 0:02:58]} 10. exd5 {[%clk 0:02:44]}  Qxd5 {[%clk 0:02:59]} 11. Qxd5 {[%clk 0:02:40]}  Nxd5 {[%clk 0:03:00]} 12. Re1+ {[%clk 0:02:41]}  Be6 {[%clk 0:03:00]} 13. Nc5 {[%clk 0:02:38]}  O-O-O {[%clk 0:02:36]} 14. Bxc6 {[%clk 0:02:38]}  bxc6 {[%clk 0:02:36]} 15. Nxe6 {[%clk 0:02:38]}  Rde8 {[%clk 0:02:16]} 16. Nd2 {[%clk 0:02:36]}  Rxe6 {[%clk 0:02:08]} 17. Rxe6 {[%clk 0:02:34]}  fxe6 {[%clk 0:02:09]} 18. Ne4 {[%clk 0:02:35]}  Kc7 {[%clk 0:02:01]} 19. Rb1 {[%clk 0:02:29]}  Rb8 {[%clk 0:01:59]} 20. b3 {[%clk 0:02:27]}  Rb4 {[%clk 0:01:58]} 21. f3 {[%clk 0:02:21]}  Bd4+ {[%clk 0:01:02]} 22. Kf1 {[%clk 0:02:20]}  e5 {[%clk 0:00:59]} 23. Bd2 {[%clk 0:02:12]}  Rb5 {[%clk 0:00:57]} 24. Ke2 {[%clk 0:02:12]}  c5 {[%clk 0:00:54]} 25. Rc1 {[%clk 0:02:08]}  Kd7 {[%clk 0:00:46]} 26. Kd3 {[%clk 0:02:03]}  Kc6 {[%clk 0:00:45]} 27. Rc4 {[%clk 0:01:59]}  Rb8 {[%clk 0:00:43]} 28. Rc1 {[%clk 0:01:50]}  Rd8 {[%clk 0:00:42]} 29. Ke2 {[%clk 0:01:48]}  Kb6 {[%clk 0:00:40]} 30. Rc4 {[%clk 0:01:44]}  Ne7 {[%clk 0:00:35]} 31. Bg5 {[%clk 0:01:38]}  Rd7 {[%clk 0:00:36]} 32. Bxe7 {[%clk 0:01:38]}  Rxe7 {[%clk 0:00:37]} 33. Nf6 {[%clk 0:01:39]}  h5 {[%clk 0:00:28]} 34. Nd5+ {[%clk 0:01:39]} 1-0

[Event "December 12 Late 2023"]
[Site "https://www.chess.com"]
[Date "2023.12.12"]
[Round "9"]
[White "Paravyan, David"]
[Black "Zou, Chen"]
[Result "1/2-1/2"]
[Board "18"]
[TimeControl "180+1"]
[WhiteFideId "4194985"]
[BlackFideId "8610959"]
[WhiteElo "3020"]
[BlackElo "2760"]
[WhiteTeam "FID"]
[BlackTeam "CHN"]
[WhiteClock "0:00:15"]
[BlackClock "0:00:02"]

1. e4 {[%clk 0:03:00]}  c5 {[%clk 0:02:57]} 2. Nf3 {[%clk 0:03:00]}  d6 {[%clk 0:02:57]} 3. d4 {[%clk 0:03:01]}  cxd4 {[%clk 0:02:58]} 4. Nxd4 {[%clk 0:03:01]}  Nf6 {[%clk 0:02:59]} 5. Nc3 {[%clk 0:03:01]}  a6 {[%clk 0:02:59]} 6. f3 {[%clk 0:03:01]}  e6 {[%clk 0:02:57]} 7. a3 {[%clk 0:03:01]}  b5 {[%clk 0:02:55]} 8. g4 {[%clk 0:03:01]}  Nfd7 {[%clk 0:02:54]} 9. Be3 {[%clk 0:02:58]}  Bb7 {[%clk 0:02:50]} 10. Qd2 {[%clk 0:02:58]}  Nb6 {[%clk 0:02:48]} 11. O-O-O {[%clk 0:02:57]}  N8d7 {[%clk 0:02:47]} 12. Kb1 {[%clk 0:02:45]}  Rc8 {[%clk 0:02:47]} 13. h4 {[%clk 0:02:34]}  Ne5 {[%clk 0:02:39]} 14. b3 {[%clk 0:02:31]}  d5 {[%clk 0:02:29]} 15. Ndxb5 {[%clk 0:02:09]}  axb5 {[%clk 0:02:26]} 16. Bxb5+ {[%clk 0:02:10]}  Bc6 {[%clk 0:02:04]} 17. Bxc6+ {[%clk 0:02:00]}  Rxc6 {[%clk 0:01:59]} 18. exd5 {[%clk 0:01:51]}  Nxd5 {[%clk 0:00:43]} 19. Nxd5 {[%clk 0:01:51]}  Qxd5 {[%clk 0:00:44]} 20. Qxd5 {[%clk 0:01:50]}  exd5 {[%clk 0:00:45]} 21. Rxd5 {[%clk 0:01:50]}  Nxf3 {[%clk 0:00:45]} 22. Rh3 {[%clk 0:01:31]}  Ne1 {[%clk 0:00:43]} 23. Re5+ {[%clk 0:01:26]}  Kd7 {[%clk 0:00:38]} 24. Bf4 {[%clk 0:01:08]}  Nxc2 {[%clk 0:00:32]} 25. Rd3+ {[%clk 0:01:09]}  Bd6 {[%clk 0:00:16]} 26. Red5 {[%clk 0:01:09]}  Nxa3+ {[%clk 0:00:16]} 27. Kb2 {[%clk 0:01:06]}  Rc2+ {[%clk 0:00:13]} 28. Ka1 {[%clk 0:01:07]}  Ra8 {[%clk 0:00:13]} 29. Rxd6+ {[%clk 0:01:05]}  Ke8 {[%clk 0:00:14]} 30. Be5 {[%clk 0:00:18]}  Rc1+ {[%clk 0:00:08]} 31. Kb2 {[%clk 0:00:17]}  Rc2+ {[%clk 0:00:08]} 32. Ka1 {[%clk 0:00:17]}  Rc1+ {[%clk 0:00:04]} 33. Kb2 {[%clk 0:00:15]}  Rc2+ {[%clk 0:00:02]} 34. Ka1 {[%clk 0:00:15]} 1/2-1/2

[Event "December 12 Late 2023"]
[Site "https://www.chess.com"]
[Date "2023.12.12"]
[Round "9"]
[White "Demchenko, Anton"]
[Black "Sai Krishna G V"]
[Result "1-0"]
[Board "21"]
[TimeControl "180+1"]
[WhiteFideId "4160258"]
[BlackFideId "5028280"]
[WhiteElo "2876"]
[BlackElo "2721"]
[WhiteTeam "SLO"]
[BlackTeam "IND"]
[WhiteClock "0:00:05"]
[BlackClock "0:00:01"]

1. e4 {[%clk 0:03:00]}  c5 {[%clk 0:03:00]} 2. Nf3 {[%clk 0:03:00]}  d6 {[%clk 0:03:00]} 3. d4 {[%clk 0:03:00]}  cxd4 {[%clk 0:03:01]} 4. Qxd4 {[%clk 0:03:00]}  Nf6 {[%clk 0:03:02]} 5. Nc3 {[%clk 0:02:59]}  Nc6 {[%clk 0:03:02]} 6. Qe3 {[%clk 0:03:00]}  e6 {[%clk 0:02:58]} 7. b3 {[%clk 0:02:59]}  Be7 {[%clk 0:02:53]} 8. Bb2 {[%clk 0:02:59]}  Bd7 {[%clk 0:02:50]} 9. O-O-O {[%clk 0:02:59]}  Rc8 {[%clk 0:02:48]} 10. Kb1 {[%clk 0:02:58]}  Qa5 {[%clk 0:02:46]} 11. Rg1 {[%clk 0:02:43]}  e5 {[%clk 0:02:35]} 12. h3 {[%clk 0:02:38]}  h5 {[%clk 0:02:00]} 13. Nd2 {[%clk 0:02:30]}  Nd4 {[%clk 0:01:47]} 14. Nc4 {[%clk 0:02:19]}  Qc7 {[%clk 0:01:46]} 15. Qd3 {[%clk 0:01:41]}  d5 {[%clk 0:01:14]} 16. Nxe5 {[%clk 0:01:14]}  Qxe5 {[%clk 0:01:14]} 17. Nxd5 {[%clk 0:00:44]}  Nxd5 {[%clk 0:01:09]} 18. Bxd4 {[%clk 0:00:45]}  Qg5 {[%clk 0:00:33]} 19. exd5 {[%clk 0:00:40]}  O-O {[%clk 0:00:31]} 20. Qg3 {[%clk 0:00:25]}  Qh6 {[%clk 0:00:22]} 21. Bd3 {[%clk 0:00:25]}  h4 {[%clk 0:00:22]} 22. Qf3 {[%clk 0:00:24]}  Ba3 {[%clk 0:00:18]} 23. Rge1 {[%clk 0:00:21]}  Rc7 {[%clk 0:00:18]} 24. Re5 {[%clk 0:00:13]}  Rfc8 {[%clk 0:00:18]} 25. Rh5 {[%clk 0:00:09]}  Qd6 {[%clk 0:00:14]} 26. Rh7 {[%clk 0:00:08]}  f6 {[%clk 0:00:12]} 27. Qh5 {[%clk 0:00:07]}  Kf8 {[%clk 0:00:04]} 28. Rh8+ {[%clk 0:00:06]}  Ke7 {[%clk 0:00:05]} 29. Re1+ {[%clk 0:00:07]}  Be6 {[%clk 0:00:05]} 30. Rxc8 {[%clk 0:00:07]}  Qf4 {[%clk 0:00:02]} 31. Rxe6+ {[%clk 0:00:05]}  Kd7 {[%clk 0:00:03]} 32. Rxc7+ {[%clk 0:00:06]}  Kxc7 {[%clk 0:00:02]} 33. Qf7+ {[%clk 0:00:05]}  Kb8 {[%clk 0:00:01]} 34. Re8# {[%clk 0:00:05]} 1-0

[Event "December 12 Late 2023"]
[Site "https://www.chess.com"]
[Date "2023.12.12"]
[Round "9"]
[White "Perea Fruet, Lorenzo"]
[Black "Troff, Kayden"]
[Result "0-1"]
[Board "30"]
[TimeControl "180+1"]
[WhiteFideId "24595870"]
[BlackFideId "2047896"]
[WhiteElo "2584"]
[BlackElo "2780"]
[WhiteTeam "ESP"]
[BlackTeam "USA"]
[WhiteClock "0:00:00"]
[BlackClock "0:00:19"]

1. f4 {[%clk 0:02:51]}  Nh6 {[%clk 0:02:57]} 2. Nf3 {[%clk 0:02:48]}  g6 {[%clk 0:02:57]} 3. d3 {[%clk 0:02:47]}  d5 {[%clk 0:02:56]} 4. e4 {[%clk 0:02:47]}  Bg7 {[%clk 0:02:45]} 5. Be2 {[%clk 0:02:46]}  Nc6 {[%clk 0:02:37]} 6. O-O {[%clk 0:02:44]}  O-O {[%clk 0:02:35]} 7. e5 {[%clk 0:02:43]}  f6 {[%clk 0:02:35]} 8. d4 {[%clk 0:02:42]}  Bf5 {[%clk 0:02:23]} 9. c4 {[%clk 0:02:40]}  fxe5 {[%clk 0:02:10]} 10. cxd5 {[%clk 0:02:36]}  Nxd4 {[%clk 0:02:07]} 11. Nxd4 {[%clk 0:01:34]}  exd4 {[%clk 0:02:04]} 12. Bf3 {[%clk 0:01:35]}  Qd6 {[%clk 0:01:57]} 13. Na3 {[%clk 0:01:12]}  Bd7 {[%clk 0:01:47]} 14. Nc4 {[%clk 0:01:09]}  Qc5 {[%clk 0:01:40]} 15. Ne5 {[%clk 0:01:06]}  Bb5 {[%clk 0:01:36]} 16. Re1 {[%clk 0:01:03]}  Nf5 {[%clk 0:01:32]} 17. Nd3 {[%clk 0:00:58]}  Qc4 {[%clk 0:01:20]} 18. Ne5 {[%clk 0:00:54]}  Qc5 {[%clk 0:01:20]} 19. Nd3 {[%clk 0:00:45]}  Qd6 {[%clk 0:01:20]} 20. a4 {[%clk 0:00:42]}  Bc4 {[%clk 0:01:11]} 21. Re6 {[%clk 0:00:39]}  Qd8 {[%clk 0:01:10]} 22. Nb4 {[%clk 0:00:20]}  c6 {[%clk 0:00:24]} 23. b3 {[%clk 0:00:11]}  Bxd5 {[%clk 0:00:22]} 24. Nxd5 {[%clk 0:00:10]}  cxd5 {[%clk 0:00:23]} 25. Ba3 {[%clk 0:00:07]}  Qd7 {[%clk 0:00:20]} 26. Re1 {[%clk 0:00:06]}  Ne3 {[%clk 0:00:19]} 27. Qd2 {[%clk 0:00:02]}  Rxf4 {[%clk 0:00:19]} 28. Rac1 {[%clk 0:00:01]}  Raf8 {[%clk 0:00:19]} 29. Bc5 {[%clk 0:00:00]}  Rxf3 {[%clk 0:00:19]} 0-1